bitfinex/quotes_ETHUSD_20241003
["timestamp","ask_amount","ask_price","bid_price","bid_amount"]
[1727978416432,4.25651,2349.4,2349.2,0.7544]
[1727978416713,8.51306,2349.4,2349.2,0.7544]
[1727978416912,4.25651,2349.4,2349.2,0.7544]
[1727978417298,4.25658,2349.3,2349.2,0.7544]
[1727978417472,4.25651,2349.4,2349.2,0.7544]
[1727978417679,8.51302,2349.4,2349.2,0.7544]
[1727978417907,4.25651,2349.4,2349.2,0.7544]
[1727978418591,5.02559,2349.7,2349.2,0.7544]
[1727978418811,4.25598,2349.7,2349.3,0.55]
[1727978419117,3.0,2349.8,2348.7,2.706965]
[1727978419118,0.806,2350.2,2349.6,0.7864]
[1727978419344,4.25586,2349.7,2349.6,1.3364]
[1727978419635,4.25563,2349.9,2349.6,1.3364]
[1727978419820,4.25569,2349.8,2349.6,1.3364]
[1727978420022,4.25586,2349.7,2349.6,1.3364]
[1727978420229,1.634432,2349.8,2349.1,0.7619]
[1727978420399,4.25622,2349.5,2349.2,0.55]
[1727978420842,4.25676,2349.2,2349.1,0.7619]
[1727978421150,4.25676,2349.2,2348.9,0.7587]
[1727978422003,4.25655,2349.4,2349.1,0.55]
[1727978422203,7.2563,2349.5,2349.1,0.55]
[1727978422409,4.25649,2349.4,2349.1,0.55]
[1727978422609,4.25675,2349.3,2349.0,0.55]
[1727978423801,4.2568,2349.2,2349.0,0.55]
[1727978424199,4.2568,2349.2,2348.9,0.7587]
[1727978424425,4.25661,2349.3,2349.0,0.55]
[1727978425613,4.25678,2349.2,2349.0,0.55]
[1727978425743,4.25661,2349.3,2349.0,0.55]
[1727978426274,4.25661,2349.3,2349.0,4.63237857]
[1727978426426,8.51328,2349.3,2349.0,4.63237857]
[1727978427038,4.25661,2349.3,2349.0,4.63237857]
[1727978427241,8.51331,2349.3,2349.0,4.63237857]
[1727978427472,3.7509,2349.8,2349.2,4.63237857]
[1727978427638,4.25641,2349.4,2349.2,0.55]
[1727978428058,4.25625,2349.5,2349.2,0.55]
[1727978428256,4.25655,2349.4,2349.1,0.8012]
[1727978429378,4.25625,2349.5,2349.1,0.8012]
[1727978429734,4.2564,2349.4,2349.1,0.8012]
[1727978430436,4.25659,2349.3,2349.1,0.8012]
[1727978430659,4.25659,2349.3,2349.0,0.55]
[1727978431482,0.7662,2349.4,2349.0,4.80712]
[1727978431483,5.02263,2349.4,2349.0,4.80712]
[1727978431653,4.25633,2349.5,2349.1,0.7519]
[1727978431864,3.0,2349.8,2349.1,0.7519]
[1727978431865,7.25583,2349.8,2349.3,4.25651]
[1727978432382,7.25583,2349.8,2349.2,8.88904857]
[1727978432383,4.25587,2349.7,2349.2,8.88904857]
[1727978432842,7.25576,2349.8,2349.4,5.03694]
[1727978433043,4.25598,2349.7,2349.4,0.7806]
[1727978433663,4.25633,2349.5,2349.2,0.7806]
[1727978433991,4.25633,2349.5,2348.9,7.46]
[1727978433992,4.25713,2349.0,2348.9,7.46]
[1727978434171,4.25695,2349.1,2348.6,0.7806]
[1727978434172,4.25706,2349.1,2348.6,0.7806]
[1727978434347,4.25721,2349.0,2348.6,5.0384]
[1727978434693,8.51446,2349.0,2348.6,5.0384]
[1727978434853,4.25721,2349.0,2348.6,5.0384]
[1727978435056,4.25745,2348.9,2348.6,0.7806]
[1727978435359,4.25715,2349.0,2348.6,0.7806]
[1727978435711,4.25733,2348.9,2348.6,0.7806]
[1727978436320,4.25731,2348.9,2348.6,0.7806]
[1727978436924,4.25721,2349.0,2348.6,5.03831]
[1727978437292,8.51444,2349.0,2348.6,5.03831]
[1727978437690,4.2574,2348.9,2348.6,0.7806]
[1727978438200,7.25749,2348.8,2348.3,7.46]
[1727978438389,8.00859,2348.8,2348.3,7.46]
[1727978438615,8.00859,2348.8,2348.3,11.71838]
[1727978438925,8.00859,2348.8,2348.4,0.813]
[1727978439071,7.25749,2348.8,2348.4,5.07119]
[1727978439276,7.25749,2348.8,2348.4,5.09696112]
[1727978439538,4.25708,2349.1,2348.8,0.7522]
[1727978439673,4.25731,2348.9,2348.8,0.7522]
[1727978440003,4.25731,2348.9,2348.4,4.08237857]
[1727978440004,4.25731,2348.9,2348.6,0.7522]
[1727978440179,4.25749,2348.8,2348.6,0.7522]
[1727978440575,4.25715,2349.0,2348.6,0.7522]
[1727978440804,4.25731,2348.9,2348.6,0.7522]
[1727978441416,4.25717,2349.0,2348.7,2.701009]
[1727978441591,4.25733,2348.9,2348.7,2.701009]
[1727978442204,4.25703,2349.1,2348.7,2.701009]
[1727978442407,4.25726,2349.0,2348.8,0.55]
[1727978442903,4.25712,2349.1,2348.8,0.55]
[1727978443107,4.25713,2349.0,2348.8,0.55]
[1727978443426,8.51436,2349.0,2348.8,0.55]
[1727978443780,4.25731,2348.9,2348.8,0.55]
[1727978444680,4.25731,2348.9,2348.7,2.0]
[1727978444908,4.25749,2348.8,2348.7,2.0]
[1727978454845,8.05589,2348.8,2348.7,2.0]
[1727978457005,7.25749,2348.8,2348.7,2.0]
[1727978458046,4.25749,2348.8,2348.7,2.0]
[1727978458844,4.25731,2348.9,2348.7,2.7926]
[1727978459050,5.08354,2349.1,2348.7,3.497649]
[1727978459256,5.08354,2349.1,2348.7,2.7926]
[1727978459257,7.25722,2349.0,2348.7,2.7926]
[1727978460048,4.25739,2348.9,2348.7,2.7926]
[1727978460346,4.25749,2348.8,2348.7,2.7926]
[1727978460545,4.25749,2348.8,2348.7,2.0]
[1727978460923,3.8265,2349.1,2348.7,2.0]
[1727978461129,4.25725,2349.0,2348.7,2.0]
[1727978461727,4.25696,2349.1,2348.8,1.3123]
[1727978461921,8.51405,2349.1,2348.8,1.3123]
[1727978462127,3.0,2349.4,2348.8,0.7623]
[1727978462128,0.7562,2349.2,2348.8,0.7623]
[1727978462332,4.25749,2348.8,2348.7,2.0]
[1727978464451,5.05549,2348.8,2348.7,2.0]
[1727978465710,4.25749,2348.8,2348.7,2.0]
[1727978466712,4.25735,2348.9,2348.7,2.0]
[1727978466951,7.25714,2349.0,2348.7,2.0]
[1727978467246,4.25734,2348.9,2348.7,2.0]
[1727978467837,0.7608,2348.9,2348.7,2.0]
[1727978468021,7.25749,2348.8,2348.7,2.0]
[1727978469314,4.25749,2348.8,2348.7,2.0]
[1727978470532,4.25731,2348.9,2348.7,2.0]
[1727978471435,4.25749,2348.8,2348.7,2.0]
[1727978473036,3.7734,2349.2,2348.7,2.0]
[1727978473037,5.03016,2349.2,2348.8,0.55]
[1727978473228,8.51424,2349.1,2348.9,0.680762]
[1727978473570,8.51424,2349.1,2348.8,0.55]
[1727978474171,4.25714,2349.0,2348.8,0.55]
[1727978474541,4.25654,2349.4,2349.0,0.55]
[1727978474875,4.25668,2349.3,2349.0,0.63493768]
[1727978475025,4.25668,2349.3,2349.0,1.61394631]
[1727978475232,4.2568,2349.2,2349.0,1.61394631]
[1727978475426,4.2568,2349.2,2349.0,1.52900863]
[1727978476067,4.2566,2349.3,2349.0,1.52900863]
[1727978476271,4.25642,2349.4,2349.2,0.8292]
[1727978476473,7.25612,2349.6,2349.3,0.55]
[1727978476676,4.25612,2349.6,2349.3,4.71730177]
[1727978476824,4.25623,2349.5,2349.3,0.6349232]
[1727978477032,8.51218,2349.6,2349.3,1.95603018]
[1727978477726,4.25588,2349.7,2349.5,0.8207]
[1727978478977,4.25595,2349.7,2349.3,0.7738]
[1727978479164,4.25629,2349.5,2349.3,0.7738]
[1727978479462,4.25595,2349.7,2349.4,0.55]
[1727978479463,8.51199,2349.7,2349.4,0.55]
[1727978479629,4.25604,2349.6,2349.4,0.55]
[1727978480179,0.7684,2349.8,2349.2,0.55]
[1727978480180,4.25648,2349.4,2349.2,0.55]
[1727978480361,4.25648,2349.4,2349.1,0.7738]
[1727978480362,4.25658,2349.3,2349.1,0.7738]
[1727978480669,4.25643,2349.4,2349.1,0.7738]
[1727978481663,8.51295,2349.4,2349.1,0.7738]
[1727978481834,4.25643,2349.4,2349.1,0.7738]
[1727978482034,8.51297,2349.4,2349.1,0.7738]
[1727978482231,4.25643,2349.4,2349.2,0.57604764]
[1727978482439,4.25615,2349.6,2349.2,0.57604764]
[1727978482634,3.0,2349.7,2349.4,4.80634]
[1727978482862,4.25564,2349.9,2349.4,4.83238542]
[1727978482863,4.25576,2349.8,2349.4,4.83238542]
[1727978483171,4.25588,2349.7,2349.4,0.57604542]
[1727978483729,4.25588,2349.7,2349.3,0.8015]
[1727978483730,4.25622,2349.5,2349.3,0.8015]
[1727978483933,4.25625,2349.5,2349.3,0.8015]
[1727978485577,4.25648,2349.4,2349.2,0.55]
[1727978485880,4.25658,2349.3,2349.2,0.55]
[1727978486438,4.25658,2349.3,2349.1,0.7838]
[1727978486439,4.25676,2349.2,2349.1,0.7838]
[1727978486681,4.25658,2349.3,2348.9,5.561]
[1727978486896,8.51328,2349.3,2348.9,5.561]
[1727978487383,4.25678,2349.2,2348.9,1.3037]
[1727978488199,4.25658,2349.3,2348.9,1.3037]
[1727978488339,4.25685,2349.2,2348.9,1.3037]
[1727978489541,4.25666,2349.3,2348.9,5.561]
[1727978490893,4.25707,2349.1,2348.9,0.55]
[1727978491041,4.25707,2349.1,2348.7,6.25755]
[1727978491042,4.25739,2348.9,2348.7,2.8136]
[1727978492983,4.25678,2349.2,2348.8,4.80748]
[1727978493147,4.25666,2349.3,2348.8,4.80748]
[1727978493350,4.25677,2349.2,2348.8,4.80748]
[1727978494245,8.51371,2349.2,2348.8,4.80748]
[1727978494674,4.25715,2349.0,2348.8,0.55]
[1727978494985,4.25715,2349.0,2348.7,2.8136]
[1727978494986,4.25717,2349.0,2348.7,2.8136]
[1727978495486,4.25731,2348.9,2348.7,2.8136]
[1727978496453,5.02289,2349.1,2348.7,2.8136]
[1727978496454,4.25717,2349.0,2348.7,2.8136]
[1727978496947,4.25731,2348.9,2348.7,2.8136]
[1727978497154,4.25717,2349.0,2348.7,2.8136]
[1727978497347,0.7659,2349.1,2348.7,2.8136]
[1727978497583,5.02287,2349.1,2348.7,2.8136]
[1727978497811,4.25723,2349.0,2348.7,2.8136]
[1727978499145,5.02286,2349.1,2348.7,2.8136]
[1727978499460,0.7659,2349.1,2348.7,2.8136]
[1727978499664,5.02291,2349.1,2348.7,7.07124]
[1727978500075,4.25678,2349.2,2348.8,4.80739]
[1727978500256,5.04154,2349.6,2349.0,0.55]
[1727978500595,4.25589,2349.7,2349.3,4.25657]
[1727978500829,4.25579,2349.8,2349.4,4.80633]
[1727978501103,4.25552,2349.9,2349.5,5.02428]
[1727978501305,4.25541,2350.0,2349.6,4.25596]
[1727978501595,4.25541,2350.0,2349.7,0.55]
[1727978501899,4.25541,2350.0,2349.6,0.57966566]
[1727978502276,8.51086,2350.0,2349.6,0.57966566]
[1727978502471,8.51086,2350.0,2349.6,0.55]
[1727978502786,8.51082,2350.0,2349.6,1.25218376]
[1727978502970,4.25541,2350.0,2349.6,1.25218376]
[1727978503302,4.25568,2349.8,2349.6,0.70218376]
[1727978504567,4.25551,2349.9,2349.6,0.70218376]
[1727978505374,4.25579,2349.8,2349.5,0.7681]
[1727978506995,4.25551,2349.9,2349.5,0.7681]
[1727978507303,4.25551,2349.9,2349.5,5.02431]
[1727978507661,8.51111,2349.9,2349.5,5.10329147]
[1727978507861,4.25551,2349.9,2349.5,0.84708147]
[1727978508061,4.25568,2349.8,2349.5,0.84708147]
[1727978508307,4.25551,2349.9,2349.5,0.7681]
[1727978508603,8.51111,2349.9,2349.5,5.02431]
[1727978508787,8.51111,2349.9,2349.5,0.7681]
[1727978510500,4.25577,2349.8,2349.5,0.7681]
[1727978511741,4.25529,2350.1,2349.5,0.7681]
[1727978511953,4.25552,2349.9,2349.5,0.7681]
[1727978512308,4.25568,2349.8,2349.5,0.7681]
[1727978514931,4.25587,2349.7,2349.5,0.7681]
[1727978515243,4.25594,2349.7,2349.3,5.60468]
[1727978515425,4.2557,2349.8,2349.4,4.25638]
[1727978515629,4.25588,2349.7,2349.3,5.60468]
[1727978515825,1.627326,2350.0,2349.3,5.60468]
[1727978515826,1.627326,2350.0,2349.3,1.3481]
[1727978516026,7.31,2350.8,2349.2,0.55]
[1727978516027,4.25656,2349.4,2349.2,0.55]
[1727978516232,0.8247,2349.6,2349.1,0.7981]
[1727978516233,4.25674,2349.3,2349.1,0.7981]
[1727978516473,4.25674,2349.3,2348.9,0.7981]
[1727978516675,4.25674,2349.3,2348.9,5.05536]
[1727978516843,4.25669,2349.3,2348.9,5.05536]
[1727978517329,4.25669,2349.3,2348.9,5.11325154]
[1727978517529,4.25669,2349.3,2348.9,5.14049672]
[1727978518035,4.25601,2349.7,2349.3,0.7981]
[1727978518245,8.51194,2349.7,2349.3,5.05461]
[1727978518443,4.25595,2349.7,2349.3,5.05461]
[1727978518648,4.25566,2349.9,2349.4,4.2564]
[1727978518831,4.25561,2349.9,2349.5,0.55]
[1727978519174,4.25578,2349.8,2349.5,0.55]
[1727978519542,4.25578,2349.8,2349.4,4.25636]
[1727978519543,3.0,2350.0,2349.3,0.7981]
[1727978519868,4.25572,2349.8,2349.4,0.55]
[1727978520076,4.25572,2349.8,2349.4,4.80633]
[1727978520274,4.25554,2349.9,2349.5,4.25615]
[1727978520578,4.25535,2350.0,2349.6,5.6707946]
[1727978520760,4.25512,2350.2,2349.6,5.6707946]
[1727978520932,4.2554,2350.0,2349.6,6.15298946]
[1727978523869,8.51083,2350.0,2349.6,6.15298946]
[1727978524074,4.2554,2350.0,2349.6,6.15298946]
[1727978524456,8.5108,2350.0,2349.6,6.15298946]
[1727978524971,4.2555,2349.9,2349.6,1.89697946]
[1727978525273,4.25577,2349.8,2349.4,0.7807]
[1727978525441,0.7742,2349.9,2349.4,0.7807]
[1727978525644,8.51226,2349.6,2349.2,7.46]
[1727978525926,4.25606,2349.6,2349.2,12.79712976]
[1727978526057,4.25606,2349.6,2349.2,8.45544967]
[1727978526058,4.25623,2349.5,2349.2,8.45544967]
[1727978526467,4.25651,2349.4,2349.2,8.45544967]
[1727978526646,4.25667,2349.3,2348.9,4.2572]
[1727978526836,4.25667,2349.3,2348.9,6.23200576]
[1727978527038,4.25698,2349.1,2348.9,1.97480576]
[1727978527232,0.8262,2349.5,2348.7,2.8089]
[1727978527475,3.0,2349.8,2348.7,2.8089]
[1727978527476,4.25749,2348.8,2348.7,2.0]
[1727978527881,4.25719,2349.0,2348.7,2.0]
[1727978528586,4.25735,2348.9,2348.7,2.0]
[1727978528933,4.25749,2348.8,2348.7,2.0]
[1727978529681,8.896674,2348.8,2348.7,2.0]
[1727978531601,8.896674,2348.8,2348.7,1.75362765]
[1727978532090,23.908183,2348.8,2348.7,1.2883072]
[1727978532394,4.25985,2347.5,2347.3,2.12877903]
[1727978532589,4.25985,2347.5,2347.3,0.8093]
[1727978532788,4.25985,2347.5,2347.2,1.31947903]
[1727978533288,4.2598,2347.6,2347.1,5.57996903]
[1727978533651,4.25963,2347.7,2347.2,4.26038]
[1727978533853,4.25977,2347.6,2347.2,1.25294944]
[1727978534396,3.0,2347.7,2347.1,0.1452]
[1727978534705,4.26039,2347.2,2347.1,0.1452]
[1727978535392,4.26037,2347.3,2347.1,0.1452]
[1727978535603,4.26005,2347.4,2347.1,0.1452]
[1727978536159,4.26012,2347.4,2347.1,0.1452]
[1727978536463,4.25995,2347.5,2347.2,0.7796]
[1727978536663,7.25952,2347.7,2347.3,4.81019]
[1727978536860,7.25932,2347.8,2347.3,9.07031]
[1727978537087,7.25932,2347.8,2347.3,4.81012]
[1727978537332,4.25949,2347.7,2347.3,4.81012]
[1727978537596,4.25899,2348.0,2347.5,4.08237857]
[1727978537803,4.2587,2348.2,2347.7,4.25945]
[1727978537952,4.2587,2348.2,2347.8,1.3039]
[1727978538352,4.25842,2348.3,2347.8,5.56311]
[1727978538579,4.25833,2348.4,2347.9,8.34143857]
[1727978538788,4.25833,2348.4,2347.9,4.08237857]
[1727978538789,4.2584,2348.3,2347.9,4.08237857]
[1727978539601,4.25679,2349.2,2348.0,0.55]
[1727978539602,4.25805,2348.5,2348.0,0.55]
[1727978539802,4.25797,2348.6,2348.1,9.14329857]
[1727978539965,4.25797,2348.6,2348.3,0.55]
[1727978539966,8.51593,2348.6,2348.3,0.55]
[1727978540162,4.25796,2348.6,2348.3,0.55]
[1727978540698,8.5159,2348.6,2348.3,0.55]
[1727978541061,4.25804,2348.5,2348.3,0.55]
[1727978541572,8.51593,2348.6,2348.3,0.55]
[1727978541784,4.25806,2348.5,2348.3,0.55]
[1727978542796,4.25805,2348.5,2348.3,0.55]
[1727978544194,4.25805,2348.5,2348.2,0.55]
[1727978544404,4.25805,2348.5,2348.2,1.111114]
[1727978544747,4.2577,2348.7,2348.2,1.111114]
[1727978545021,4.25781,2348.7,2348.2,1.111114]
[1727978545317,8.51634,2348.5,2348.2,1.111114]
[1727978545523,4.25823,2348.4,2348.2,0.55]
[1727978546028,0.7825,2348.5,2347.8,9.64078686]
[1727978546327,8.51728,2348.2,2347.9,1.81595369]
[1727978546614,4.25858,2348.2,2347.9,1.81595369]
[1727978547223,4.25876,2348.1,2347.9,0.55]
[1727978547520,4.25858,2348.2,2347.9,0.55]
[1727978547981,8.51729,2348.2,2347.9,0.55]
[1727978548459,4.25843,2348.3,2347.9,8.89140857]
[1727978548614,4.25804,2348.5,2348.1,4.25869]
[1727978549308,4.25804,2348.5,2348.1,0.55]
[1727978549480,3.0,2348.6,2348.1,0.55]
[1727978549684,4.25813,2348.5,2348.1,0.55]
[1727978550183,4.25783,2348.7,2348.1,4.80875]
[1727978550510,4.25803,2348.5,2348.2,0.8161]
[1727978550684,4.25822,2348.4,2348.2,0.8161]
[1727978551222,4.25803,2348.5,2348.2,0.8161]
[1727978552736,4.25803,2348.5,2348.3,0.55]
[1727978553421,4.25781,2348.7,2348.3,0.55]
[1727978553639,4.25788,2348.6,2348.3,0.55]
[1727978553797,4.25805,2348.5,2348.3,0.55]
[1727978554208,4.25788,2348.6,2348.3,0.55]
[1727978556829,4.25804,2348.5,2348.3,0.55]
[1727978557415,4.25789,2348.6,2348.3,0.55]
[1727978566948,4.25805,2348.5,2348.2,0.8161]
[1727978567159,4.25846,2348.3,2348.0,0.7509]
[1727978567342,4.25907,2348.0,2347.7,0.7509]
[1727978567514,0.8251,2348.1,2347.7,0.7509]
[1727978567515,4.25927,2347.9,2347.7,0.7509]
[1727978567946,4.25897,2348.0,2347.7,0.7509]
[1727978568360,4.25875,2348.2,2347.7,0.7509]
[1727978568528,4.25879,2348.1,2347.7,0.7509]
[1727978569837,4.25842,2348.3,2347.8,4.80918]
[1727978570650,4.25834,2348.4,2348.0,5.07952]
[1727978571264,4.25834,2348.4,2348.0,0.8206]
[1727978571418,4.25841,2348.3,2348.0,0.8206]
[1727978574717,4.25883,2348.1,2347.7,5.02685]
[1727978576039,4.25883,2348.1,2347.8,0.55]
[1727978576924,5.087,2348.0,2347.5,4.83837857]
[1727978577253,4.25938,2347.8,2347.5,0.756]
[1727978577629,0.8279,2348.0,2347.5,0.756]
[1727978577630,4.25957,2347.7,2347.5,0.756]
[1727978577830,0.8279,2348.0,2347.3,8.2171]
[1727978577831,5.08685,2348.0,2347.3,8.2171]
[1727978578036,8.51884,2347.8,2347.3,12.47715]
[1727978578243,4.2595,2347.7,2347.3,12.47715]
[1727978578435,4.2595,2347.7,2347.3,5.01715]
[1727978578637,1.336585,2348.0,2347.3,0.7571]
[1727978578638,4.25989,2347.5,2347.3,0.7571]
[1727978578823,4.26018,2347.4,2347.2,0.40165092]
[1727978579028,0.7616,2347.5,2347.2,0.40165092]
[1727978579225,4.26004,2347.4,2347.2,0.40165092]
[1727978580428,4.2598,2347.6,2347.2,0.40165092]
[1727978580788,8.51962,2347.6,2347.2,0.40165092]
[1727978580921,4.2598,2347.6,2347.3,0.7692]
[1727978581123,4.2594,2347.8,2347.4,0.55]
[1727978581349,4.25956,2347.7,2347.4,0.55]
[1727978581554,4.2594,2347.8,2347.4,0.55]
[1727978582141,0.814,2348.0,2347.3,0.7692]
[1727978582358,0.814,2348.0,2347.4,0.55]
[1727978582359,4.25943,2347.8,2347.4,0.55]
[1727978582556,5.07298,2348.0,2347.5,4.25975]
[1727978582760,4.2592,2347.9,2347.6,1.3192]
[1727978582946,4.25896,2348.0,2347.6,1.3192]
[1727978583278,8.51803,2348.0,2347.6,1.3192]
[1727978583646,4.25896,2348.0,2347.6,1.3192]
[1727978583842,4.25863,2348.2,2347.6,11.05327843]
[1727978584071,4.25863,2348.2,2347.8,0.55]
[1727978585040,4.25883,2348.1,2347.7,0.55]
[1727978585547,4.25883,2348.1,2347.7,4.80939]
[1727978585746,4.2586,2348.2,2347.7,4.80939]
[1727978585973,4.2586,2348.2,2347.9,0.55]
[1727978586390,4.25903,2348.0,2347.6,0.7692]
[1727978586544,4.25903,2348.0,2347.4,1.31947903]
[1727978586545,4.25839,2348.3,2347.4,0.7931]
[1727978586738,4.25839,2348.3,2347.2,7.46]
[1727978586739,4.25985,2347.5,2347.2,8.77947903]
[1727978586992,4.26008,2347.4,2347.2,2.09277903]
[1727978588141,4.2598,2347.6,2347.2,2.09277903]
[1727978588142,4.25986,2347.5,2347.2,2.09277903]
[1727978588348,4.2598,2347.6,2347.2,2.09277903]
[1727978588677,9.32014,2347.8,2347.3,0.55]
[1727978588876,9.32014,2347.8,2347.3,4.81003]
[1727978588877,4.25931,2347.8,2347.3,4.81003]
[1727978589385,4.25931,2347.8,2347.4,4.26002]
[1727978589580,3.0,2347.9,2347.5,4.80984]
[1727978589897,4.25924,2347.9,2347.6,0.7564]
[1727978590064,4.2593,2347.8,2347.6,0.7564]
[1727978590445,4.25948,2347.7,2347.6,0.7564]
[1727978590686,4.25992,2347.5,2347.2,1.31947903]
[1727978591047,0.928364,2347.8,2347.2,5.57975903]
[1727978591249,3.0,2347.8,2347.3,1.31947903]
[1727978591680,7.25938,2347.8,2347.3,5.57967903]
[1727978591892,7.25938,2347.8,2347.3,1.31947903]
[1727978592062,4.25951,2347.7,2347.3,1.31947903]
[1727978592265,7.25938,2347.8,2347.3,5.57964903]
[1727978592454,4.25957,2347.7,2347.3,1.31947903]
[1727978592801,8.487732,2347.8,2347.3,5.57964903]
[1727978592964,4.25968,2347.6,2347.3,1.31947903]
[1727978593152,0.7682,2347.7,2347.3,1.31947903]
[1727978593347,5.02779,2347.7,2347.3,1.31947903]
[1727978593570,4.25959,2347.7,2347.3,1.31947903]
[1727978594699,3.0,2347.8,2347.5,0.7564]
[1727978595076,0.8239,2348.1,2347.5,0.7564]
[1727978595284,4.25876,2348.1,2347.6,4.79840786]
[1727978595800,4.25875,2348.2,2347.7,0.55]
[1727978596164,4.25875,2348.2,2347.7,4.80946]
[1727978596506,4.25876,2348.1,2347.7,0.55]
[1727978596866,0.8239,2348.3,2347.7,4.80947]
[1727978596867,5.08247,2348.3,2347.7,4.80947]
[1727978597088,5.08247,2348.3,2347.7,5.97784569]
[1727978597316,4.25867,2348.2,2347.8,0.7896]
[1727978597505,4.25867,2348.2,2347.8,5.04888]
[1727978598704,4.25824,2348.4,2347.8,5.04888]
[1727978598912,4.25848,2348.3,2347.9,0.55]
[1727978600215,4.25848,2348.3,2347.9,4.8091]
[1727978600581,4.25848,2348.3,2347.9,0.55]
[1727978600874,4.25836,2348.4,2347.9,0.55]
[1727978601120,4.25847,2348.3,2347.9,0.55]
[1727978602844,7.25796,2348.6,2347.9,5.48275512]
[1727978603058,0.7852,2349.0,2348.3,0.55]
[1727978603338,4.25757,2348.8,2348.5,0.55]
[1727978604263,4.2581,2348.5,2348.2,0.55]
[1727978605337,4.25786,2348.6,2348.2,0.55]
[1727978605528,7.25705,2349.1,2348.2,0.55]
[1727978605529,4.25715,2349.0,2348.5,4.25802]
[1727978605730,7.982765,2349.1,2348.7,0.55]
[1727978606041,0.725705,2349.1,2348.7,4.80764]
[1727978606763,4.982655,2349.1,2348.7,0.55]
[1727978606941,9.239775,2349.1,2348.7,0.55]
[1727978607135,4.982655,2349.1,2348.7,0.55]
[1727978607353,0.8071,2349.3,2348.8,5.07651]
[1727978607354,4.25662,2349.3,2348.8,5.07651]
[1727978607535,4.25634,2349.5,2348.8,5.07651]
[1727978607536,4.25632,2349.5,2348.9,4.8073]
[1727978607764,4.25632,2349.5,2349.1,0.55]
[1727978607933,4.25607,2349.6,2349.1,4.80682]
[1727978608275,4.25607,2349.6,2349.2,5.07585]
[1727978608430,8.51229,2349.6,2349.2,0.8191]
[1727978609154,4.25607,2349.6,2349.2,0.8191]
[1727978609355,0.8181,2350.0,2349.3,0.55]
[1727978609539,4.25551,2349.9,2349.5,0.55]
[1727978609741,5.07351,2350.0,2349.7,0.55]
[1727978609742,4.25541,2350.0,2349.7,0.55]
[1727978610374,4.25558,2349.9,2349.7,0.55]
[1727978610560,4.25559,2349.9,2349.4,0.8124]
[1727978610882,4.25618,2349.6,2349.4,0.8124]
[1727978612032,4.25618,2349.6,2349.4,0.9576]
[1727978612770,4.25552,2349.9,2349.5,0.55]
[1727978613191,4.25546,2350.0,2349.5,0.55]
[1727978613669,4.25545,2350.0,2349.5,0.55]
[1727978613860,4.25545,2350.0,2349.5,5.382596]
[1727978614399,4.25514,2350.1,2349.8,0.7606]
[1727978614549,4.2551,2350.2,2349.9,0.55]
[1727978614748,3.0,2350.3,2349.9,0.57381648]
[1727978614749,7.25487,2350.3,2349.9,0.57381648]
[1727978614973,0.8036,2350.9,2350.0,4.88307857]
[1727978615288,4.25264,2351.5,2349.9,4.80534]
[1727978615289,4.69852828,2351.2,2350.7,4.08237857]
[1727978615497,4.25329,2351.2,2350.7,4.08237857]
[1727978615647,0.8036,2351.4,2350.9,4.08237857]
[1727978615850,0.8036,2351.4,2350.8,0.55]
[1727978615851,4.25253,2351.6,2351.1,4.08237857]
[1727978616049,4.25299,2351.3,2351.1,4.08237857]
[1727978616478,4.25299,2351.3,2350.9,4.63237857]
[1727978616647,4.25299,2351.3,2350.9,5.52100143]
[1727978616851,4.25248,2351.6,2351.1,4.88787857]
[1727978617162,4.25272,2351.5,2351.2,0.55]
[1727978617357,4.25284,2351.4,2351.1,0.8055]
[1727978617788,4.25299,2351.3,2351.1,0.8055]
[1727978618314,4.25299,2351.3,2350.8,4.25369]
[1727978618315,4.25334,2351.1,2350.9,0.55]
[1727978618598,4.25333,2351.1,2350.8,0.7722]
[1727978619193,4.25353,2351.0,2350.8,0.7722]
[1727978619363,5.103683,2351.3,2350.8,0.7722]
[1727978619567,3.0,2351.4,2350.9,0.55]
[1727978619808,7.2529,2351.4,2350.9,1.107615]
[1727978620800,4.25302,2351.3,2350.9,1.107615]
[1727978621092,4.25349,2351.1,2350.8,0.7722]
[1727978621804,4.25306,2351.3,2350.9,0.55]
[1727978621955,4.25284,2351.4,2350.9,0.55]
[1727978622154,4.25284,2351.4,2350.9,4.8887131]
[1727978622399,4.25284,2351.4,2351.1,0.55]
[1727978623096,7.25256,2351.6,2350.8,9.27984]
[1727978623097,4.25333,2351.1,2350.8,0.7722]
[1727978623400,4.25315,2351.2,2350.9,0.55]
[1727978623569,4.25344,2351.1,2350.8,0.7722]
[1727978624558,8.50647,2351.2,2350.8,0.7722]
[1727978624982,4.25315,2351.2,2350.8,2.5220866]
[1727978625186,4.25341,2351.1,2350.8,2.5220866]
[1727978625387,4.25369,2350.9,2350.8,0.7722]
[1727978625555,4.25345,2351.1,2350.8,0.7722]
[1727978626700,8.50622,2351.3,2350.9,0.55]
[1727978626997,4.2528,2351.4,2350.9,4.80366]
[1727978627173,4.2528,2351.4,2351.1,0.55]
[1727978627501,4.25298,2351.3,2351.1,0.55]
[1727978628357,4.2528,2351.4,2351.1,0.55]
[1727978628667,7.25252,2351.6,2351.1,0.55]
[1727978628668,4.25261,2351.5,2351.1,0.55]